[Event "CCT Julius Baer-D2 2024"]
[Site "Online"]
[Date "2024.09.27"]
[Round "1.3"]
[White "Bok, Benjamin"]
[Black "Macho_"]
[Result "1/2-1/2"]
[ECO "E06"]
[WhiteElo "2672"]
[BlackElo "2590"]
[Annotator "ChessBase"]
[PlyCount "76"]
[EventDate "2024.09.25"]
[EventType "swiss"]
[EventCountry "NET"]
[SourceTitle "playchess.com"]
[Source "ChessBase"]
[SourceQuality "1"]
[TimeControl "600+2"]

1. c4 {[%emt 0:00:02]} e6 {[%emt 0:00:12]} 2. Nf3 {[%emt 0:00:04]} d5 {[%emt 0:00:06]} 3. g3 {[%emt 0:00:04]} Nf6 {[%emt 0:00:01]} 4. Bg2 {[%emt 0:00:02]} Be7 {[%emt 0:00:01]} 5. d4 {[%emt 0:00:12]} O-O {[%emt 0:00:02]} 6. Nc3 {[%emt 0:00:01]} dxc4 {[%emt 0:00:02]} 7. Ne5 {[%emt 0:00:01]} c5 {[%emt 0:00:04]} 8. dxc5 {[%emt 0:00:01]} Qxd1+ {[%emt 0:00:00]} 9. Nxd1 {[%emt 0:00:00]} Bxc5 {[%emt 0:00:02]} 10. O-O {[%emt 0:00:01]} Nd5 {[%emt 0:00:01]} 11. Ne3 {[%emt 0:00:08]} Nxe3 {[%emt 0:00:03]} 12. Bxe3 {[%emt 0:00:03]} Bxe3 {[%emt 0:00:01]} 13. fxe3 {[%emt 0:00:00]} c3 {[%emt 0:00:01]} 14. bxc3 {[%emt 0:00:03]} f6 {[%emt 0:00:07]} 15. Rad1 {[%emt 0:02:43]} Na6 {[%emt 0:00:37]} 16. Nd3 {[%emt 0:00:06]} Rb8 {[%emt 0:00:54]} 17. Rf4 {[%emt 0:01:32]} Bd7 {[%emt 0:00:30]} 18. Rd4 {[%emt 0:01:10]} Rf7 {[%emt 0:01:00]} 19. Rd6 {[%emt 0:02:33]} Re7 {[%emt 0:01:04]} 20. Bxb7 {[%emt 0:00:23]} Rxb7 {[%emt 0:00:02]} 21. Rxa6 {[%emt 0:00:02]} Bb5 {[%emt 0:00:52]} 22. Ra5 {[%emt 0:00:18]} Bc4 {[%emt 0:00:03]} 23. Kf2 {[%emt 0:00:11]} e5 {[%emt 0:00:33]} 24. Rd2 {[%emt 0:00:14]} Red7 {[%emt 0:01:26]} 25. Rb2 {[%emt 0:00:32]} Rbc7 {[%emt 0:00:03]} 26. Nb4 {[%emt 0:00:23]} Be6 {[%emt 0:00:48]} 27. Rc2 {[%emt 0:00:02]} Bf5 {[%emt 0:00:06]} 28. Rc1 {[%emt 0:00:01]} Rd2 {[%emt 0:00:04]} 29. Ke1 {[%emt 0:00:04]} Rb2 {[%emt 0:00:10]} 30. Nd5 {[%emt 0:00:03]} Rd7 {[%emt 0:00:12]} 31. Rd1 {[%emt 0:00:02]} Rc2 {[%emt 0:00:51]} 32. Rd2 {[%emt 0:00:01]} Rc1+ {[%emt 0:00:01]} 33. Rd1 {[%emt 0:00:01]} Rc2 {[%emt 0:00:01]} 34. e4 {[%emt 0:00:03]} Bg4 {[%emt 0:00:08]} 35. Rd2 {[%emt 0:00:01]} Rc1+ {[%emt 0:00:00]} 36. Rd1 {[%emt 0:00:01]} Rc2 {[%emt 0:00:03]} 37. Rd2 {[%emt 0:00:02]} Rc1+ {[%emt 0:00:00]} 38. Rd1 {[%emt 0:00:04]} Rc2 {[%emt 0:00:01]} 1/2-1/2

[Event "CCT Julius Baer-D2 2024"]
[Site "Online"]
[Date "2024.09.27"]
[Round "1.3"]
[White "Oparin, Grigoriy"]
[Black "Lazavik, Denis"]
[Result "1/2-1/2"]
[ECO "C44"]
[WhiteElo "2671"]
[BlackElo "2764"]
[Annotator "TA"]
[PlyCount "61"]
[EventDate "2024.09.25"]
[EventType "swiss"]
[EventCountry "NET"]
[SourceTitle "playchess.com"]
[Source "ChessBase"]
[SourceQuality "1"]
[TimeControl "600+2"]

{[%evp 10,60,-5,3,12,0,22,12,19,2,0,0,0,0,0,-7,-22,-34,-11,-11,-5,-31,0,0,0,0,7,0,0,0,16,27,36,0,35,7,0,0,7,0,0,0,0,-249,-267,-269,-264,-262,-262,-259,-230,-299,-294]} 1. e4 {[%emt 0:00:03]} e5 {[%emt 0:00:04]} 2. Nf3 {[%emt 0:00:00]} Nc6 {[%emt 0:00:01]} 3. g3 {[%emt 0:00:01]} Nf6 {[%emt 0:00:13]} 4. d3 {[%emt 0:00:01]} d5 {[%emt 0:00:03]} 5. exd5 {[%emt 0:00:00]} Nxd5 {[%emt 0:00:00]} 6. Bg2 {[%emt 0:00:00]} Bd6 {[%emt 0:00:01]} 7. O-O {[%emt 0:00:01]} O-O {[%emt 0:00:01]} 8. Re1 {[%emt 0:00:01]} h6 {[%emt 0:00:12] The position is equal.} 9. Nbd2 {[%emt 0:00:02]} Re8 {[%emt 0:00:06]} 10. a3 {[%emt 0:00:04]} a5 {[%emt 0:00:49]} 11. Nc4 {[%emt 0:00:04]} Bf5 {[%emt 0:00:15]} 12. Bd2 {[%emt 0:00:16]} Qd7 {[%emt 0:00:04]} 13. Rb1 {[%emt 0:00:30]} Bg4 {[%emt 0:00:33]} 14. Qc1 {[%emt 0:00:14]} a4 {[%emt 0:00:23]} 15. Bc3 {[%emt 0:00:29][%cal Rc4e5]} Nxc3 {[%emt 0:00:37]} 16. bxc3 {[%emt 0:00:01]} Rab8 {[%emt 0:00:02]} 17. Nxd6 {[%emt 0:00:14]} cxd6 {[%emt 0:00:21]} 18. Rb6 {[%emt 0:00:01]} d5 {[%emt 0:00:16]} 19. Nd2 {[%emt 0:00:04]} e4 {[%emt 0:01:23]} 20. dxe4 {[%emt 0:00:15]} d4 {[%emt 0:00:01]} 21. Nb1 {[%emt 0:01:01]} Ne5 {[%emt 0:00:36]} 22. cxd4 {[%emt 0:00:27]} Qxd4 {[%emt 0:00:07]} 23. Rb4 {[%emt 0:00:03]} Qc5 {[%emt 0:00:22]} 24. h3 {[%emt 0:00:22]} Be6 {[%emt 0:00:15]} 25. Rxa4 {[%emt 0:00:30]} Rbc8 {[%emt 0:00:04][%cal Oe5d3] [#] And now ...Nd3! would win.} 26. Qf4 $2 {[%emt 0:00:17]} (26. Re3 $11 {and White is okay.}) 26... Qxc2 $19 {[%emt 0:00:09] ...Nd3 is the strong threat.} 27. Rd4 {[%emt 0:00:56]} Nd3 {[%emt 0:00:10]} 28. Rxd3 {[%emt 0:00:00]} Qxd3 {[%emt 0:00:00]} 29. e5 {[%emt 0:00:01]} Bd5 {[%emt 0:01:08]} 30. Nd2 {[%emt 0:00:06]} Bxg2 {[%emt 0:00:03]} 31. Kxg2 {[%emt 0:00:02] Weighted Error Value: White=0.24 (precise) /Black=0.06 (flawless) .  Loses game:     	White=1     	---        Inaccurate:     	White=3     	Black=2      OK:         	White=8     	Black=13     Best:        	White=1     	Black=1} 1/2-1/2

[Event "CCT Julius Baer-D2 2024"]
[Site "Online"]
[Date "2024.09.28"]
[Round "2"]
[White "So, Wesley"]
[Black "Madaminov, Mukhiddin"]
[Result "1-0"]
[ECO "C42"]
[WhiteElo "2752"]
[BlackElo "2512"]
[Annotator "TA"]
[PlyCount "89"]
[EventDate "2024.09.25"]
[EventType "swiss"]
[EventCountry "NET"]
[SourceTitle "playchess.com"]
[Source "ChessBase"]
[SourceQuality "1"]
[TimeControl "600+2"]

{[%evp 23,89,0,7,11,8,-11,-9,-22,-11,-19,-20,-24,-12,-16,-5,-9,-4,0,0,-6,0,-2,0,-18,-14,-29,-16,-22,-29,-21,-22,-19,0,0,0,0,32,29,31,27,56,14,62,66,75,0,176,160,177,183,266,280,272,279,431,422,478,475,484,485,645,652,732,457,453,456,29988,29989]} 1. e4 {[%emt 0:00:08]} e5 {[%emt 0:00:07]} 2. Nf3 {[%emt 0:00:08]} Nf6 {[%emt 0:00:02]} 3. Nxe5 {[%emt 0:00:08]} d6 {[%emt 0:00:02]} 4. Nf3 {[%emt 0:00:04]} Nxe4 {[%emt 0:00:01]} 5. Bd3 {[%emt 0:00:02]} Nf6 {[%emt 0:00:10]} 6. O-O {[%emt 0:00:03] C42: Petroff Defence: 3 Nxe5 and unusual White 3rd moves.} Be7 {[%emt 0:00:04]} 7. c3 {[%emt 0:00:14]} O-O {[%emt 0:00:06]} 8. h3 {[%emt 0:00:05]} Nbd7 {[%emt 0:01:53]} 9. Bc2 {[%emt 0:00:33]} b6 {[%emt 0:00:01]} 10. d4 {[%emt 0:00:06]} Bb7 {[%emt 0:00:01]} 11. Re1 {[%emt 0:00:02]} Re8 {[%emt 0:00:01]} 12. a4 $5 {[%emt 0:00:27][%mdl 4] Leaves trodden paths.} a6 {[%emt 0:00:04]} 13. Be3 $146 {[%emt 0:01:46]} ({Predecessor:} 13. Bg5 h6 14. Bh4 Nh5 15. Qd3 Nf8 16. Bxe7 Rxe7 17. Nbd2 Nf6 18. Bb3 Rxe1+ 19. Rxe1 Qd7 20. Re3 Re8 21. Qe2 Rxe3 22. Qxe3 a5 23. Bd1 Bc6 24. b3 Nd5 {½-½ Movsesian,S (2716)-Kasimdzhanov,R (2672) Donostia-A San Sebastian 2009 (7)}) 13... Nd5 {[%emt 0:00:10]} 14. Nbd2 {[%emt 0:00:09]} Nxe3 {[%emt 0:00:12]} 15. Rxe3 {[%emt 0:00:01]} Nf6 {[%emt 0:00:10]} 16. Qf1 {[%emt 0:00:39]} Nd5 {[%emt 0:00:09]} 17. Ree1 {[%emt 0:00:05]} g6 {[%emt 0:00:18]} 18. Be4 {[%emt 0:00:11]} Qc8 {[%emt 0:00:02]} 19. h4 {[%emt 0:00:24]} Nf6 {[%emt 0:00:33]} 20. Bxb7 {[%emt 0:00:07]} Qxb7 {[%emt 0:00:00]} 21. Qd3 {[%emt 0:00:02]} Bf8 {[%emt 0:00:04]} 22. Ng5 {[%emt 0:00:10]} Bg7 {[%emt 0:00:16]} 23. Qc4 {[%emt 0:00:17]} d5 {[%emt 0:00:18]} 24. Qd3 {[%emt 0:00:18]} c5 {[%emt 0:00:05]} 25. g3 {[%emt 0:00:08]} h6 {[%emt 0:00:08]} 26. Ngf3 {[%emt 0:00:04]} Ne4 {[%emt 0:00:01]} 27. Nf1 {[%emt 0:00:37]} Qd7 {[%emt 0:00:18]} 28. Ne3 {[%emt 0:00:13]} c4 {[%emt 0:00:53]} 29. Qc2 {[%emt 0:00:02]} Qc6 {[%emt 0:00:43]} 30. h5 {[%emt 0:00:11]} Re6 {[%emt 0:00:08]} 31. Re2 {[%emt 0:00:04]} Rae8 {[%emt 0:00:03]} 32. Rae1 {[%emt 0:00:04]} b5 {[%emt 0:00:00]} (32... g5 $11 {was preferrable.}) 33. axb5 $14 {[%emt 0:00:02]} axb5 {[%emt 0:00:00]} 34. Ng2 {[%emt 0:00:19]} (34. hxg6 $16 fxg6 35. Ng2) 34... Rd6 $2 {[%emt 0:00:30]} (34... g5 $11) 35. hxg6 $18 {[%emt 0:00:07]} fxg6 {[%emt 0:00:02]} 36. Nd2 {[%emt 0:00:02]} Nf6 {[%emt 0:01:31]} (36... Rde6 {keeps fighting.} 37. Nf4 R6e7 38. Nxe4 Rxe4 39. Rxe4 Rxe4 40. Rxe4 dxe4) 37. Qxg6 $18 {[%emt 0:00:06]} Rxe2 {[%emt 0:00:09]} 38. Rxe2 {[%emt 0:00:00]} Re6 {[%emt 0:00:00]} (38... Ne4 {was called for.} 39. Qh5 Nf6) 39. Re5 $18 {[%emt 0:00:15]} Rxe5 {[%emt 0:00:36]} 40. dxe5 {[%emt 0:00:00]} Qe8 {[%emt 0:00:00]} 41. Qf5 {[%emt 0:00:10]} Nd7 {[%emt 0:00:40]} 42. e6 {[%emt 0:00:02]} Nf8 {[%emt 0:00:00]} 43. Qxd5 {[%emt 0:00:11]} Qxe6 {[%emt 0:00:01]} 44. Qxb5 {[%emt 0:00:00]} Qe1+ {[%emt 0:00:09]} (44... Qe2 $18 45. Qxc4+ Qxc4 46. Nxc4 Ng6) 45. Nxe1 {[%emt 0:00:02]} 1-0

[Event "CCT Julius Baer-D2 2024"]
[Site "Online"]
[Date "2024.09.28"]
[Round "2"]
[White "Vidit, Santosh Gujrathi"]
[Black "Durarbayli, Vasif"]
[Result "1-0"]
[ECO "C11"]
[WhiteElo "2720"]
[BlackElo "2626"]
[Annotator "TA"]
[PlyCount "113"]
[EventDate "2024.09.25"]
[EventType "swiss"]
[EventCountry "NET"]
[SourceTitle "playchess.com"]
[Source "ChessBase"]
[SourceQuality "1"]
[TimeControl "600+2"]

{[%evp 17,113,9,10,0,4,0,41,45,47,33,33,34,52,47,43,37,44,42,52,45,46,36,41,44,37,51,51,40,47,59,45,38,56,39,34,27,35,0,0,0,0,12,15,8,17,0,0,0,71,80,97,109,290,260,306,284,275,272,1127,893,925,244,244,244,244,287,261,68,69,8,235,235,242,242,1190,1190,1185,1121,953,2545,29977,29978,29978,29972,29973,29974,29975,29974,29982,29977,29977,29978,29982,0,29983,29984,29984,29985]} 1. e4 {[%emt 0:00:05]} e6 {[%emt 0:00:03]} 2. d4 {[%emt 0:00:05]} d5 {[%emt 0:00:01]} 3. Nc3 {[%emt 0:00:01]} Nf6 {[%emt 0:00:01]} 4. e5 {[%emt 0:00:04]} Nfd7 {[%emt 0:00:01]} 5. f4 {[%emt 0:00:01]} c5 {[%emt 0:00:01]} 6. Nf3 {[%emt 0:00:01]} Nc6 {[%emt 0:00:00]} 7. Be3 {[%emt 0:00:02]} cxd4 {[%emt 0:00:02]} 8. Nxd4 {[%emt 0:00:01]} Qb6 {[%emt 0:00:00]} 9. a3 {[%emt 0:00:43]} Bc5 {[%emt 0:01:23]} 10. Ncb5 {[%emt 0:00:02]} Nxd4 {[%emt 0:00:02]} (10... a6 $5 11. b4 axb5 12. bxc5 Qxc5 $11) 11. Bxd4 {[%emt 0:00:10][%cal Ob5d6]} Bxd4 {[%emt 0:00:12]} 12. Qxd4 {[%emt 0:00:02] White is slightly better.} O-O {[%emt 0:00:08]} 13. Qxb6 {[%emt 0:00:20]} Nxb6 {[%emt 0:00:07]} 14. Bd3 {[%emt 0:00:02]} f6 {[%emt 0:00:10]} 15. exf6 {[%emt 0:00:15]} Rxf6 {[%emt 0:00:02]} 16. g3 {[%emt 0:00:08]} Bd7 {[%emt 0:01:23]} 17. Nd4 {[%emt 0:00:06]} e5 {[%emt 0:00:17]} 18. fxe5 {[%emt 0:00:03]} Re8 {[%emt 0:00:01]} 19. O-O-O {[%emt 0:00:27]} Rxe5 {[%emt 0:00:02]} 20. b3 {[%emt 0:00:05]} g6 {[%emt 0:00:54]} 21. Rhf1 {[%emt 0:01:07]} Kg7 {[%emt 0:00:11]} 22. Kd2 {[%emt 0:00:16]} Nc8 {[%emt 0:00:26]} 23. Rxf6 {[%emt 0:00:03]} Kxf6 {[%emt 0:00:01]} 24. Rf1+ {[%emt 0:00:03]} Kg7 $1 {[%emt 0:00:14]} 25. a4 {[%emt 0:00:08]} Nd6 {[%emt 0:00:05]} 26. a5 {[%emt 0:00:09]} Ne4+ {[%emt 0:00:58]} 27. Kc1 {[%emt 0:00:22]} Rh5 {[%emt 0:00:24]} 28. Nf3 {[%emt 0:00:30]} Bg4 {[%emt 0:00:11]} 29. Nh4 {[%emt 0:00:08]} Nc5 {[%emt 0:00:43]} 30. Rf4 {[%emt 0:01:17]} Bd7 {[%emt 0:00:21]} 31. Nf3 {[%emt 0:00:30]} Nxd3+ {[%emt 0:00:58]} 32. cxd3 $11 {[%emt 0:00:00][%mdl 4096] Endgame. KRB-KRN} d4 {[%emt 0:00:00]} 33. b4 $1 $16 {[%emt 0:00:14]} (33. Rxd4 $6 Bc6 34. Rf4 Rxa5 $11) 33... Bc6 {[%emt 0:00:50]} 34. Nxd4 {[%emt 0:01:25]} Rxh2 $2 {[%emt 0:00:01]} (34... Bd7 $16) 35. Nxc6 $1 $18 {[%emt 0:00:02]} bxc6 $16 {[%emt 0:00:02] KR-KR} 36. Rc4 $1 {[%emt 0:00:01]} h5 {[%emt 0:00:38]} 37. Rxc6 {[%emt 0:00:02]} h4 $2 {[%emt 0:00:01]} (37... g5 38. b5 (38. Rc7+ Kf6 $14) 38... h4 39. gxh4 gxh4) 38. gxh4 $18 {[%emt 0:00:07]} Rxh4 {[%emt 0:00:00]} 39. Rc4 $2 {[%emt 0:00:32]} (39. Ra6) 39... g5 {[%emt 0:00:02]} 40. Kd2 {[%emt 0:00:04] Black must now prevent Rxh4.} Rh2+ {[%emt 0:00:09]} 41. Ke3 {[%emt 0:00:01]} Kf6 {[%emt 0:00:00]} 42. a6 $2 {[%emt 0:00:38]} (42. Rc7 $18) 42... Rb2 $1 $14 {[%emt 0:00:06]} 43. Ke4 {[%emt 0:00:08]} (43. Rc6+ $14 Ke5 44. d4+ Kf5 45. Rc5+ Kf6 46. b5) 43... Rb3 $2 {[%emt 0:00:11]} (43... Ke6 $11) 44. Rc6+ $18 {[%emt 0:00:37]} Ke7 {[%emt 0:00:01]} 45. Rc7+ {[%emt 0:00:01]} Kd6 $2 {[%emt 0:00:01]} (45... Ke6 46. Rb7 (46. Rxa7 Rxb4+ 47. d4 Ra4 $16) 46... g4) 46. Rxa7 {[%emt 0:00:10]} Rxb4+ {[%emt 0:00:01] [#]} 47. d4 $1 {[%emt 0:00:01][%cal Bd3d4,Bd4d5,Bd5d6,Bd6d7][%mdl 32] Hoping for Rg7.} Kc6 {[%emt 0:00:05]} 48. Rg7 {[%emt 0:00:06][%cal Oa6a7] White threatens a7! and mate.} Rb5 {[%emt 0:00:01]} 49. Rg6+ {[%emt 0:00:06]} Kc7 {[%emt 0:00:02]} 50. d5 {[%emt 0:00:02]} Ra5 {[%emt 0:00:02]} 51. Ke5 {[%emt 0:00:01]} (51. Rxg5 Ra4+ 52. Ke5 Rxa6 $11) 51... g4 {[%emt 0:00:02]} 52. Rg7+ {[%emt 0:00:02]} (52. Rxg4 Rxa6 53. Rg7+ Kd8 $11) 52... Kc8 {[%emt 0:00:05]} 53. Ke6 {[%emt 0:00:02]} (53. Rxg4 Rxa6 54. Rg8+ Kd7 $11) 53... Rxa6+ {[%emt 0:00:03]} 54. d6 {[%emt 0:00:01]} Ra3 {[%emt 0:00:01]} 55. Rg8+ {[%emt 0:00:01]} ({Weaker is} 55. Rxg4 Re3+ 56. Kd5 Rd3+ 57. Kc5 Rc3+ 58. Kd5 Rd3+ 59. Kc5 Rd2 $11) 55... Kb7 {[%emt 0:00:01] [#]} 56. d7 $1 {[%emt 0:00:00]} ({And not} 56. Rxg4 Rh3 $11) 56... Re3+ {[%emt 0:00:01]} 57. Kf5 {[%emt 0:00:01] Weighted Error Value: White=0.26 (precise) /Black=0.35.  Loses game:     	---       	Black=2      Missed win:     	White=1     	---        Mistake:       	White=1     	Black=3      Inaccurate:     	White=1     	Black=1      OK:         	White=12    	Black=9      Best:        	White=5     	Black=4      Strong:       	White=3     	Black=2} 1-0

[Event "CCT Julius Baer-D2 2024"]
[Site "Online"]
[Date "2024.09.28"]
[Round "2"]
[White "Sargsyan, Shant"]
[Black "Daneshvar, Bardiya"]
[Result "1-0"]
[ECO "A43"]
[WhiteElo "2649"]
[BlackElo "2598"]
[Annotator "TA"]
[PlyCount "67"]
[EventDate "2024.09.25"]
[EventType "swiss"]
[EventCountry "NET"]
[SourceTitle "playchess.com"]
[Source "ChessBase"]
[SourceQuality "1"]
[TimeControl "600+2"]

{[%evp 9,67,34,16,-30,-6,-59,48,53,66,52,60,50,70,61,68,41,187,174,452,452,447,434,512,504,502,385,735,736,773,775,639,571,941,950,1138,960,1002,997,1652,895,899,909,909,865,1166,1091,982,861,1145,645,922,927,1544,1373,1427,1278,1592,1098,1571,875]} 1. d4 {[%emt 0:00:02]} Nf6 {[%emt 0:00:03]} 2. Nf3 {[%emt 0:00:01]} c5 {[%emt 0:00:01]} 3. d5 {[%emt 0:00:02]} b5 {[%emt 0:00:01]} 4. Bg5 {[%emt 0:00:04]} g6 {[%emt 0:00:01]} 5. a4 {[%emt 0:00:11]} b4 {[%emt 0:00:03] [#]} 6. d6 {[%emt 0:00:51]} Bg7 {[%emt 0:00:57]} (6... exd6 $5 7. Qd3 Bg7 8. Qxd6 (8. Bxf6 $2 Qxf6 9. Qe4+ Kd8 $19) 8... Ne4 9. Bxd8 Nxd6 $17) 7. e4 {[%emt 0:00:39]} Nc6 {[%emt 0:00:44]} (7... exd6 $15 8. Nbd2 Qc7 9. Bxf6 Bxf6) 8. e5 $14 {[%emt 0:01:13] White is slightly better.} Ng4 {[%emt 0:00:38]} 9. Bb5 $1 {[%emt 0:00:04] aiming for Bxc6.} f6 {[%emt 0:00:38]} (9... Ncxe5 10. Bxe7 (10. dxe7 Qc7 $15) 10... Qa5 11. Nbd2 $18 (11. Nxe5 Nxe5 12. Nd2 Rb8 $18)) (9... Ngxe5 10. Nxe5 Nxe5 (10... Bxe5 $2 11. Bxc6 dxc6 12. Bxe7 $18) 11. Bxe7 $18 (11. dxe7 Qc7 $15)) 10. exf6 {[%emt 0:00:13]} exf6 {[%emt 0:00:20]} 11. Qe2+ {[%emt 0:00:28]} Nce5 {[%emt 0:00:20]} 12. h3 $1 $36 {[%emt 0:03:34][%mdl 2048] White has the initiative. White is more active.} O-O {[%emt 0:00:49]} (12... fxg5 $14 13. hxg4 Qf6) 13. hxg4 $18 {[%emt 0:00:12] [#] And now Nxe5 would win.} Nxf3+ {[%emt 0:00:08]} (13... fxg5 14. Nxe5 Qf6) 14. Qxf3 {[%emt 0:00:04]} fxg5 {[%emt 0:00:16] Black is weak on the light squares} 15. Qxa8 {[%emt 0:00:02]} Bxb2 {[%emt 0:02:35]} 16. Ra2 {[%emt 0:00:05]} Re8+ {[%emt 0:00:10]} 17. Kf1 {[%emt 0:00:25]} Bd4 $2 {[%emt 0:00:02]} (17... Qf6 18. Qf3 (18. Qxa7 $2 Qe6 $19) 18... Qe5 19. Bc4+ (19. Qb3+ Re6 $18) 19... Kh8) 18. c3 {[%emt 0:00:08] White is clearly winning.} (18. Qxa7 $2 Bxf2 19. Qa8 (19. Kxf2 {leads to mate.} Qf6+ 20. Kg1 Re1+) (19. Bc4+ $2 Kg7 $19) 19... Bg3 20. Bc4+ Kg7 $19) 18... bxc3 {[%emt 0:00:11]} 19. Rh3 {[%emt 0:00:45]} ({Inferior is} 19. Qxa7 Qf6 20. Nxc3 (20. Bxd7 $2 Qf7 $19) 20... Bxc3 $11) 19... Qf6 {[%emt 0:00:49]} 20. Qd5+ {[%emt 0:00:03]} (20. Qxa7 $2 {loses.} Qe6 21. Re2 c2 $19) 20... Re6 {[%emt 0:00:06]} 21. Rf3 {[%emt 0:00:07] Dodges Qf4} Qg7 {[%emt 0:00:09]} 22. Re2 {[%emt 0:00:04][%cal Oe2e6] Black must now prevent Rxe6!} c2 {[%emt 0:00:29]} 23. Rxc2 {[%emt 0:00:09]} Qh6 {[%emt 0:00:03]} 24. Rh3 {[%emt 0:00:05]} Qf8 {[%emt 0:00:02]} 25. Bc4 {[%emt 0:00:49]} Kh8 {[%emt 0:00:24]} 26. Qxg5 {[%emt 0:00:04]} Rf6 {[%emt 0:00:21]} 27. Qh4 {[%emt 0:00:03]} h5 {[%emt 0:00:07]} 28. f3 {[%emt 0:00:15][%cal Bf2f3,Bf3f4][%mdl 32]} Bb7 {[%emt 0:00:21]} 29. Be2 {[%emt 0:00:05]} Rf4 {[%emt 0:00:05]} 30. Qg5 {[%emt 0:00:03]} Rxg4 {[%emt 0:00:02]} 31. Qxg4 {[%emt 0:00:02]} Qh6 {[%emt 0:00:02]} 32. f4 {[%emt 0:00:05]} Be4 {[%emt 0:00:02]} 33. Rc1 {[%emt 0:00:03]} Kg8 {[%emt 0:00:04]} 34. Rxh5 {[%emt 0:00:02] Black got outplayed after the opening.   Weighted Error Value: White=0.27 (precise) /Black=0.58.  Mistake:       	White=1     	Black=4      OK:         	White=4     	Black=3      Best:        	White=2     	Black=2      Strong:       	White=2     	---} 1-0

[Event "CCT Julius Baer-D2 2024"]
[Site "Online"]
[Date "2024.09.28"]
[Round "2"]
[White "Durarbayli, Vasif"]
[Black "Vidit, Santosh Gujrathi"]
[Result "1/2-1/2"]
[ECO "C45"]
[WhiteElo "2626"]
[BlackElo "2720"]
[Annotator "RC"]
[PlyCount "76"]
[EventDate "2024.09.25"]
[EventType "swiss"]
[EventCountry "NET"]
[SourceTitle "playchess.com"]
[Source "ChessBase"]
[SourceQuality "1"]
[TimeControl "600+2"]

1. e4 {[%emt 0:00:02]} e5 {[%emt 0:00:03]} 2. Nf3 {[%emt 0:00:01]} Nc6 {[%emt 0:00:01]} 3. d4 {[%emt 0:00:01]} exd4 {[%emt 0:00:02]} 4. Nxd4 {[%emt 0:00:00]} Nf6 {[%emt 0:00:08]} 5. Nxc6 {[%emt 0:00:01]} bxc6 {[%emt 0:00:01]} 6. e5 {[%emt 0:00:01]} Qe7 {[%emt 0:00:01]} 7. Qe2 {[%emt 0:00:00]} Nd5 {[%emt 0:00:02]} 8. h4 {[%emt 0:00:00]} a5 {[%emt 0:00:14]} 9. c4 {[%emt 0:00:07]} Ba6 {[%emt 0:00:18]} 10. Rh3 {[%emt 0:00:12]} Qb4+ {[%emt 0:00:44]} 11. Kd1 {[%emt 0:01:32]} Nb6 {[%emt 0:00:16]} 12. b3 {[%emt 0:00:12]} a4 {[%emt 0:00:07]} 13. Nd2 {[%emt 0:01:02]} Qa5 {[%emt 0:00:25]} 14. Bb2 {[%emt 0:00:23]} Bb4 {[%emt 0:00:25]} 15. Ne4 {[%emt 0:00:43]} a3 {[%emt 0:00:12]} 16. Bd4 {[%emt 0:00:49]} O-O-O {[%emt 0:00:29]} 17. Kc2 {[%emt 0:00:29]} Rhe8 {[%emt 0:00:26]} 18. Rd1 {[%emt 0:01:50]} d5 {[%emt 0:04:51]} 19. exd6 {[%emt 0:00:01]} cxd6 {[%emt 0:00:04]} 20. Re3 {[%emt 0:00:12]} Re6 {[%emt 0:00:14]} 21. Ng5 {[%emt 0:00:50]} Rxe3 {[%emt 0:00:34]} 22. Qxe3 {[%emt 0:00:00]} Nd7 {[%emt 0:00:02]} 23. Bd3 {[%emt 0:00:31]} f6 {[%emt 0:00:04]} 24. Nf7 {[%emt 0:00:21]} Rf8 {[%emt 0:00:01]} 25. Qe6 {[%emt 0:00:01]} Kc7 {[%emt 0:00:07]} 26. Be3 {[%emt 0:00:31]} Rxf7 {[%emt 0:00:27]} 27. Qxf7 {[%emt 0:00:02]} Qe5 {[%emt 0:00:01]} 28. Bd4 {[%emt 0:00:45]} Qxd4 {[%emt 0:00:01]} 29. Qxd7+ {[%emt 0:00:00]} Kb6 {[%emt 0:00:01]} 30. c5+ {[%emt 0:00:10]} Qxc5+ {[%emt 0:00:08]} 31. Kb1 {[%emt 0:00:01]} Bxd3+ {[%emt 0:00:12]} 32. Rxd3 {[%emt 0:00:00]} Qxf2 {[%emt 0:00:18]} 33. Qd8+ {[%emt 0:00:01]} Kb5 {[%emt 0:00:03]} 34. Qb8+ {[%emt 0:00:01]} Ka6 {[%emt 0:00:06]} 35. Qa8+ {[%emt 0:00:02]} Kb6 {[%emt 0:00:01]} 36. Qb8+ {[%emt 0:00:02]} Ka6 {[%emt 0:00:02]} 37. Qa8+ {[%emt 0:00:09]} Kb6 {[%emt 0:00:01]} 38. Qb8+ {[%emt 0:00:01]} Ka6 {[%emt 0:00:01]} 1/2-1/2